bitfinex-derivatives/quotes_SOLF0:USTF0_20250520
["timestamp","ask_amount","ask_price","bid_price","bid_amount"]
[1747772315989,2.77624615,167.51,167.46,100.14]
[1747772316209,5.968,167.5,167.46,100.14]
[1747772316497,0.03868953,167.5,167.46,100.18280209]
[1747772316696,5.9682,167.49,167.46,100.18280209]
[1747772317195,0.03868953,167.5,167.46,100.18280209]
[1747772317397,0.03868953,167.5,167.46,0.04280209]
[1747772317691,2.77813662,167.49,167.46,0.04280209]
[1747772317895,0.03868953,167.5,167.46,0.04280209]
[1747772318096,5.9682,167.49,167.46,0.04280209]
[1747772318299,5.9682,167.49,167.46,6.01180209]
[1747772318493,0.03868953,167.5,167.46,6.01180209]
[1747772318494,0.03868953,167.5,167.46,0.04280209]
[1747772318701,5.9689,167.47,167.46,0.04280209]
[1747772320200,8.74926187,167.47,167.46,0.04280209]
[1747772320893,0.03868953,167.5,167.46,0.04280209]
[1747772321090,7.3001582,167.57,167.47,100.14]
[1747772321294,7.3001582,167.57,167.5,15.98238119]
[1747772321497,7.3001582,167.57,167.51,100.14]
[1747772322191,0.03863358,167.56,167.52,0.04342163]
[1747772322499,11.00108966,167.6,167.54,15.98238119]
[1747772322700,11.00108966,167.6,167.55,100.14]
[1747772323102,11.00108966,167.6,167.59,5.9646]
[1747772323703,0.03986221,167.61,167.6,5.9642]
[1747772324292,0.03986221,167.61,167.58,0.03918349]
[1747772325604,0.03986221,167.61,167.58,6.00388349]
[1747772326110,6.00376221,167.61,167.58,0.03918349]
[1747772326908,0.03986221,167.61,167.58,6.00398349]
[1747772327108,0.03986221,167.61,167.58,0.03918349]
[1747772327910,0.03986221,167.61,167.51,99.82]
[1747772328104,5.9654,167.57,167.53,5.9666]
[1747772328812,5.9658,167.56,167.52,5.967]
[1747772329006,6.00540653,167.56,167.52,6.01215494]
[1747772329203,0.03960653,167.56,167.52,0.04515494]
[1747772329509,0.03960653,167.56,167.53,5.9666]
[1747772330106,0.03960653,167.56,167.52,0.04515494]
[1747772331309,5.9662,167.55,167.52,0.04515494]
[1747772331605,0.03960653,167.56,167.52,0.04515494]
[1747772332605,5.9665,167.54,167.52,0.04515494]
[1747772333114,5.9667,167.53,167.52,0.04515494]
[1747772334612,105.7865,167.54,167.52,0.04515494]
[1747772334813,99.82,167.54,167.52,0.04515494]
[1747772335310,0.03960653,167.56,167.52,0.04515494]
[1747772336313,0.03960653,167.56,167.53,5.9666]
[1747772336517,0.03960653,167.56,167.52,0.04515494]
[1747772337513,0.03960653,167.56,167.55,5.966]
[1747772339618,0.03960653,167.56,167.54,5.9663]
[1747772339817,0.03960653,167.56,167.52,4.13825494]
[1747772340318,0.03960653,167.56,167.55,5.966]
[1747772340510,180.97475809,167.76,167.55,15.98238119]
[1747772340715,5.9253,167.73,167.62,15.98238119]
[1747772341020,5.9253,167.73,167.63,104.24]
[1747772341215,104.26,167.76,167.65,15.98238119]
[1747772341409,5.959,167.75,167.69,5.961]
[1747772341609,0.04200807,167.74,167.7,0.04585886]
[1747772342513,0.04200807,167.74,167.72,5.96]
[1747772342815,0.04200807,167.74,167.7,0.04585886]
[1747772343017,104.24,167.82,167.71,15.98238119]
[1747772343221,5.9569,167.81,167.71,15.98238119]
[1747772343523,104.24,167.82,167.71,15.98238119]
[1747772343824,110.1967,167.82,167.76,5.9584]
[1747772344008,0.04453308,167.81,167.77,0.04031866]
[1747772345922,6.00163308,167.81,167.77,0.04031866]
[1747772346124,0.04453308,167.81,167.77,0.04031866]
[1747772347024,5.9578,167.78,167.77,0.04031866]
[1747772350222,104.20453308,167.81,167.66,2.0024]
[1747772350527,2.004,167.77,167.67,110.1215]
[1747772350726,5.9602,167.72,167.67,110.1215]
[1747772350928,104.16,167.76,167.67,104.16]
[1747772351131,5.9603,167.71,167.7,0.04561007]
[1747772351829,0.03980799,167.73,167.63,104.16]
[1747772352126,1.9331,167.75,167.63,104.16]
[1747772352729,0.04251669,167.71,167.67,0.04229814]
[1747772352929,5.9613,167.69,167.67,0.04229814]
[1747772353727,5.9607,167.7,167.67,0.04229814]
[1747772354027,0.04251669,167.71,167.67,0.04229814]
[1747772354326,6.00311669,167.71,167.67,6.00399814]
[1747772355232,5.9607,167.7,167.67,0.04229814]
[1747772355423,0.04251669,167.71,167.67,0.04229814]
[1747772355927,5.9614,167.68,167.67,0.04229814]
[1747772356125,0.04251669,167.71,167.67,0.04229814]
[1747772356126,0.04251669,167.71,167.67,16.02467933]
[1747772356334,110.2,167.82,167.68,110.2]
[1747772356623,112.2272,167.83,167.68,112.2098]
[1747772356827,112.2272,167.83,167.71,15.98238119]
[1747772357230,5.99745306,167.79,167.75,6.00406623]
[1747772357528,0.03985306,167.79,167.75,0.04526623]
[1747772357727,5.9579,167.78,167.75,0.04526623]
[1747772357923,0.03985306,167.79,167.75,0.04526623]
[1747772358331,5.9584,167.77,167.75,0.04526623]
[1747772359529,5.9585,167.76,167.75,0.04526623]
[1747772360030,0.03985306,167.79,167.75,0.04526623]
[1747772361131,5.9583,167.77,167.75,0.04526623]
[1747772362633,0.03985306,167.79,167.75,0.04526623]
[1747772363631,0.03985306,167.79,167.76,5.9582]
[1747772364334,0.03985306,167.79,167.75,0.04526623]
[1747772364933,0.03985306,167.79,167.77,5.9578]
[1747772365336,0.03985306,167.79,167.75,0.04526623]
[1747772366830,5.9585,167.76,167.75,0.04526623]
[1747772367236,0.03985306,167.79,167.75,0.04526623]
[1747772367764,0.03985306,167.79,167.78,5.9578]
[1747772367830,2.0677,167.86,167.78,114.42]
[1747772368033,5.9546,167.88,167.78,114.42]
[1747772368334,5.9546,167.88,167.84,5.9555]
[1747772368834,5.99220741,167.88,167.84,0.04332156]
[1747772369138,5.9548,167.87,167.84,0.04332156]
[1747772370341,5.9551,167.86,167.84,0.04332156]
[1747772372040,5.9547,167.87,167.84,0.04332156]
[1747772372344,0.03760741,167.88,167.85,5.9553]
[1747772372537,0.03760741,167.88,167.84,0.04332156]
[1747772374839,0.03760741,167.88,167.85,5.9551]
[1747772375034,0.03760741,167.88,167.84,0.04332156]
[1747772375340,0.03760741,167.88,167.86,5.9549]
[1747772376236,2.0852,167.97,167.87,15.98238119]
[1747772376442,2.0852,167.97,167.88,114.38]
[1747772376628,8.0364,167.97,167.93,5.9525]
[1747772376835,8.0364,167.97,167.88,114.38]
[1747772377141,8.0364,167.97,167.91,0.03898274]
[1747772377333,0.04438145,167.94,167.91,0.03898274]
[1747772380746,5.99678145,167.94,167.91,0.03898274]
[1747772381642,5.99678145,167.94,167.91,5.99218274]
[1747772381944,0.04438145,167.94,167.91,0.03898274]
[1747772382134,0.04438145,167.94,167.91,5.99208274]
[1747772382445,0.04438145,167.94,167.91,0.03898274]
[1747772382743,0.04438145,167.94,167.92,5.9526]
[1747772383249,5.99658145,167.94,167.91,5.99208274]
[1747772383438,0.04438145,167.94,167.91,5.99208274]
[1747772383639,0.04438145,167.94,167.91,0.03898274]
[1747772383839,0.04438145,167.94,167.92,5.9528]
[1747772384147,0.04438145,167.94,167.91,0.03898274]
[1747772384646,0.04438145,167.94,167.82,114.32]
[1747772384839,114.32,167.93,167.82,114.32]
[1747772385040,5.9547,167.87,167.84,5.9556]
[1747772385345,114.32,167.93,167.82,114.32]
[1747772385541,5.9552,167.86,167.82,114.32]
[1747772385845,5.9552,167.86,167.82,114.36079938]
[1747772386046,5.9554,167.85,167.82,120.31699938]
[1747772386349,0.04442004,167.85,167.82,114.36079938]
[1747772387451,0.04442004,167.85,167.83,5.9561]
[1747772387847,5.99982004,167.85,167.82,5.99699938]
[1747772388051,0.04442004,167.85,167.82,0.04079938]
[1747772388547,0.04442004,167.85,167.82,5.99699938]
[1747772388748,0.04442004,167.85,167.82,0.04079938]
[1747772389144,6.00002004,167.85,167.82,5.99719938]
[1747772389645,5.956,167.84,167.82,0.04079938]
[1747772390141,5.99992004,167.85,167.82,0.04079938]
[1747772390348,0.04442004,167.85,167.82,0.04079938]
[1747772390948,0.04442004,167.85,167.83,5.956]
[1747772391141,0.04442004,167.85,167.82,0.04079938]
[1747772391549,0.04442004,167.85,167.83,5.956]
[1747772392060,0.04442004,167.85,167.82,0.04079938]
[1747772392251,0.04442004,167.85,167.84,5.9557]
[1747772392449,11.9029,167.97,167.84,5.9557]
[1747772392649,132.1883,168.02,167.85,114.34]
[1747772392949,114.34,168.02,167.85,114.34]
[1747772393146,114.34,168.02,167.92,5.9527]
[1747772393449,114.34,168.02,167.85,114.34]
[1747772393653,5.9514,167.96,167.95,0.04378905]
[1747772395356,0.03875047,167.97,167.95,0.04378905]
[1747772395952,5.9514,167.96,167.95,0.04378905]
[1747772396855,5.9514,167.96,167.95,8.905e-05]
[1747772397061,0.03875047,167.97,167.81,114.32]
[1747772397361,114.32,167.98,167.81,114.32]
[1747772398258,0.04008792,167.91,167.88,0.04200011]
[1747772398460,5.9539,167.89,167.88,0.04200011]
[1747772402167,5.9537,167.9,167.88,0.04200011]
[1747772402869,5.9539,167.89,167.88,0.04200011]
[1747772403563,5.9537,167.9,167.88,0.04200011]
[1747772403962,5.9539,167.89,167.88,0.04200011]
[1747772404483,0.04265642,167.91,167.88,0.04200011]
[1747772405173,5.9539,167.9,167.88,0.04200011]
[1747772405775,5.9539,167.89,167.88,0.04200011]
[1747772406079,0.04265642,167.91,167.88,0.04200011]
[1747772406280,5.9539,167.89,167.88,0.04200011]
[1747772406482,0.04265642,167.91,167.88,0.04200011]
[1747772407481,0.04265642,167.91,167.9,5.9536]
[1747772410076,0.04265642,167.91,167.88,5.99610011]
[1747772410275,0.04265642,167.91,167.88,0.04200011]
[1747772411185,0.04265642,167.91,167.89,5.9539]
[1747772411882,0.04265642,167.91,167.9,5.9536]
[1747772414190,115.56,168.0,167.89,115.56]
[1747772414191,5.9501,168.0,167.96,5.9513]
[1747772414389,115.56,168.04,167.96,5.9513]
[1747772414591,115.56,168.04,167.89,115.56]
[1747772414790,115.56,168.04,167.9,115.56]
[1747772415191,5.9517,167.96,167.95,0.04387393]
[1747772421492,5.9511,167.97,167.95,0.04387393]
[1747772421789,0.04116535,167.99,167.95,0.04387393]
[1747772422396,5.9508,167.98,167.95,5.99557393]
[1747772423387,5.9508,167.98,167.95,0.04387393]
[1747772424091,5.99166535,167.99,167.96,5.9514]
[1747772425290,0.04116535,167.99,167.97,5.951]
[1747772425693,0.04116535,167.99,167.95,115.58387393]
[1747772426086,0.04116535,167.99,167.98,5.9507]
[1747772426287,113.2374,168.08,167.95,115.58387393]
[1747772426489,2.0617,168.07,167.95,115.54]
[1747772426697,2.0617,168.07,167.97,5.951]
[1747772427195,0.04062579,168.04,168.0,0.03960338]
[1747772427896,5.9497,168.01,168.0,0.03960338]
[1747772429693,5.9493,168.03,168.0,0.03960338]
[1747772429996,0.04062579,168.04,168.0,0.03960338]
[1747772430191,5.9495,168.02,168.0,0.03960338]
[1747772430396,0.04062579,168.04,168.0,0.03960338]
[1747772430598,5.9496,168.02,168.0,0.03960338]
[1747772430991,5.9496,168.02,168.0,5.98960338]
[1747772431194,5.9497,168.01,168.0,0.03960338]
[1747772432397,5.9497,168.01,167.9,9.88830334]
[1747772432603,2.0367,168.02,167.95,5.9516]
[1747772433003,5.951,167.98,167.95,5.9516]
[1747772433302,2.0367,168.02,167.95,5.9516]
[1747772433494,0.04118842,168.0,167.97,0.04322518]
[1747772434396,5.951,167.98,167.97,0.04322518]
[1747772435102,0.04118842,168.0,167.97,0.04322518]
[1747772435599,5.99148842,168.0,167.97,5.99412518]
[1747772436396,5.9505,167.99,167.97,0.04322518]
[1747772436998,5.9507,167.98,167.97,0.04322518]
[1747772439906,5.9526,167.93,167.87,627.7044]
[1747772440304,5.9526,167.93,167.89,5.9536]
[1747772440600,1.9252,167.97,167.89,5.9536]
[1747772440601,5.9529,167.92,167.89,5.9536]
[1747772440801,1.9295,167.96,167.89,5.9536]
[1747772441012,0.0416841,167.92,167.89,5.99367162]
[1747772441793,5.9536,167.9,167.89,0.04007162]
[1747772446414,5.9534,167.91,167.89,0.04007162]
[1747772447011,5.9945841,167.92,167.89,0.04007162]
[1747772447209,5.9945841,167.92,167.89,5.99377162]
[1747772447715,0.0416841,167.92,167.89,0.04007162]
[1747772448110,0.0416841,167.92,167.91,5.9532]
[1747772448509,0.0416841,167.92,167.89,0.04007162]
[1747772449814,0.0416841,167.92,167.9,5.9536]
[1747772450418,0.0416841,167.92,167.91,5.9532]
[1747772451913,0.0416841,167.92,167.89,0.04007162]
[1747772452811,5.9946841,167.92,167.89,0.04007162]
[1747772453021,0.0416841,167.92,167.89,0.04007162]
[1747772453624,0.0416841,167.92,167.9,5.9533]
[1747772454018,5.9946841,167.92,167.89,5.99387162]
[1747772454617,5.9946841,167.92,167.89,0.04007162]
[1747772455918,5.9532,167.91,167.89,0.04007162]
[1747772456416,0.0416841,167.92,167.89,0.04007162]
[1747772457015,5.9534,167.91,167.89,0.04007162]
[1747772458419,5.9536,167.9,167.89,0.04007162]
[1747772458622,0.0416841,167.92,167.89,5.99397162]
[1747772459921,0.0416841,167.92,167.9,5.9535]
[1747772460526,0.0416841,167.92,167.91,5.9532]
[1747772461418,107.06,168.02,167.98,5.9507]
[1747772461917,107.06,168.02,168.0,5.95]
[1747772462317,107.06,168.02,167.93,9.89410978]
[1747772462509,0.04152365,167.99,167.96,0.03767553]
[1747772462819,0.04152365,167.99,167.98,5.9507]
[1747772464121,0.04152365,167.99,167.97,5.9511]
[1747772465522,0.04152365,167.99,167.96,0.03767553]
[1747772466622,5.9511,167.97,167.96,0.03767553]
[1747772466923,9.93563343,167.99,167.87,111.1677]
[1747772467116,9.89410978,167.99,167.87,111.1677]
[1747772467621,9.89410978,167.99,167.87,107.04]
[1747772467823,5.9531,167.92,167.91,0.04180878]
[1747772469016,5.9525,167.94,167.91,0.04180878]
[1747772469423,5.9522,167.94,167.91,0.04180878]
[1747772470123,115.05586374,167.95,167.91,5.99500878]
[1747772470429,115.05586374,167.95,167.91,0.04180878]
[1747772470924,109.10396374,167.95,167.91,0.04180878]
[1747772471624,5.9522,167.94,167.91,5.99490878]
[1747772472023,109.10396374,167.95,167.91,0.04180878]
[1747772472230,115.05596374,167.95,167.92,5.9526]
[1747772472521,0.04306374,167.95,167.91,0.04180878]
[1747772472924,0.04306374,167.95,167.93,5.9524]
[1747772474124,5.99496374,167.95,167.93,5.9524]
[1747772474315,0.04306374,167.95,167.93,5.9524]
[1747772475532,0.04306374,167.95,167.91,0.04180878]
[1747772475720,0.04306374,167.95,167.94,5.9522]
[1747772478529,0.04306374,167.95,167.93,5.9524]
[1747772478727,0.04306374,167.95,167.91,0.04180878]
[1747772481727,5.9522,167.94,167.92,5.9528]
[1747772481929,5.9522,167.94,167.91,0.04180878]
[1747772482426,5.9526,167.93,167.91,0.04180878]
[1747772483327,5.9526,167.93,167.91,5.99480878]
[1747772486334,5.9529,167.92,167.91,0.04180878]
[1747772486729,9.89410978,167.93,167.83,1.9926]
[1747772486928,9.89410978,167.93,167.82,170.72818089]
[1747772487633,9.89410978,167.93,167.84,5.9554]
[1747772487836,0.0434907,167.9,167.87,0.0376002]
[1747772488537,5.9539,167.89,167.87,0.0376002]
[1747772488932,0.0434907,167.9,167.87,0.0376002]
[1747772489233,5.9543,167.88,167.87,0.0376002]
[1747772489619,0.0434907,167.9,167.87,0.0376002]
[1747772489819,5.9541,167.89,167.87,0.0376002]
[1747772490434,5.9543,167.88,167.87,0.0376002]
[1747772490733,0.0434907,167.9,167.87,0.0376002]
[1747772491832,5.954,167.89,167.87,0.0376002]
[1747772492034,0.0434907,167.9,167.87,0.0376002]
[1747772492221,5.9971907,167.9,167.87,5.9920002]
[1747772494040,0.0434907,167.9,167.88,5.9543]
[1747772495739,5.9970907,167.9,167.87,5.9921002]
[1747772496734,5.9539,167.89,167.87,5.9921002]
[1747772496939,0.0434907,167.9,167.87,5.9921002]
[1747772497127,0.0434907,167.9,167.88,5.9542]
[1747772499342,0.0434907,167.9,167.87,0.0376002]
[1747772499934,5.9971907,167.9,167.87,5.9922002]
[1747772503938,0.0434907,167.9,167.87,5.9922002]
[1747772505237,5.9970907,167.9,167.87,5.9922002]
[1747772505540,0.0434907,167.9,167.87,0.0376002]
[1747772505739,5.9971907,167.9,167.87,0.0376002]
[1747772506441,5.9971907,167.9,167.87,5.9922002]
[1747772510341,5.954,167.89,167.87,5.9922002]
[1747772511241,5.9971907,167.9,167.87,5.9922002]
[1747772511436,0.0434907,167.9,167.87,0.0376002]
[1747772512443,0.0434907,167.9,167.88,5.954]
[1747772513344,5.9972907,167.9,167.87,5.9921002]
[1747772514443,0.0434907,167.9,167.87,0.0376002]
[1747772515046,5.9541,167.89,167.87,0.0376002]
[1747772515447,0.0434907,167.9,167.87,103.0376002]
[1747772515747,0.0434907,167.9,167.89,5.9539]
[1747772523454,103.0,167.98,167.94,5.952]
[1747772523748,5.9513,167.97,167.94,5.952]
[1747772524252,5.99687808,167.97,167.94,5.99460111]
[1747772525453,5.9517,167.96,167.94,5.99460111]
[1747772525656,0.04557808,167.97,167.95,5.9516]
[1747772525951,0.04557808,167.97,167.94,0.04260111]
[1747772526252,0.04557808,167.97,167.96,5.9515]
[1747772527659,0.04557808,167.97,167.94,0.04260111]
[1747772528255,5.9518,167.95,167.94,0.04260111]
[1747772537965,0.04557808,167.97,167.94,0.04260111]
[1747772538468,5.9517,167.96,167.94,0.04260111]
[1747772539371,5.9518,167.95,167.94,0.04260111]
[1747772544473,5.9543,167.88,167.84,6.0307]
[1747772544677,5.9543,167.88,167.83,101.76]
[1747772545169,5.9543,167.88,167.85,1.48866333]
[1747772545389,5.9543,167.88,167.85,7.44386333]
[1747772545673,5.9549,167.87,167.85,1.52666]
[1747772545864,0.04572731,167.88,167.85,1.52666]
[1747772546875,0.04572731,167.88,167.87,5.9546]
[1747772547669,0.04572731,167.88,167.85,0.03799667]
[1747772548070,6.00022731,167.88,167.85,5.99309667]
[1747772548576,0.04572731,167.88,167.85,0.03799667]
[1747772548778,5.9547,167.87,167.85,0.03799667]
[1747772548968,0.04572731,167.88,167.85,0.03799667]
[1747772549677,6.00012731,167.88,167.85,5.99329667]
[1747772549977,0.04572731,167.88,167.85,0.03799667]
[1747772550176,0.04572731,167.88,167.87,5.9548]
[1747772550873,0.04572731,167.88,167.85,0.03799667]
[1747772552276,5.9552,167.86,167.85,0.03799667]
[1747772553772,0.04572731,167.88,167.85,0.03799667]
[1747772554380,0.04572731,167.88,167.87,5.9548]
[1747772554579,101.62,167.95,167.87,101.62]
[1747772554781,5.9517,167.96,167.87,101.62]
[1747772555173,112.62108966,167.99,167.87,111.51410978]
[1747772555477,101.62,168.0,167.95,5.952]
[1747772555792,0.0451883,167.99,167.96,0.04373901]
[1747772555977,5.99371557,167.99,167.96,0.03909998]
[1747772556880,5.951,167.98,167.96,0.03909998]
[1747772557286,0.04311557,167.99,167.96,0.03909998]
[1747772557585,5.9512,167.98,167.96,0.03909998]
[1747772558785,0.04311557,167.99,167.96,0.03909998]
[1747772559178,0.04311557,167.99,167.96,5.99039998]
[1747772559380,0.04311557,167.99,167.96,0.03909998]
[1747772559784,0.04311557,167.99,167.98,5.951]
[1747772561383,0.04311557,167.99,167.96,0.03909998]
[1747772561882,5.9513,167.97,167.96,0.03909998]
[1747772564185,5.9532,167.92,167.9,101.6]
[1747772564490,101.6,167.98,167.9,101.6]
[1747772565197,0.04170653,167.96,167.92,0.04507276]
[1747772565596,5.9529,167.93,167.92,0.04507276]
[1747772566795,5.9525,167.94,167.92,0.04507276]
[1747772567196,0.04170653,167.96,167.92,0.04507276]
[1747772567897,0.04170653,167.96,167.94,5.9522]
[1747772568294,0.04170653,167.96,167.92,0.04507276]
[1747772568491,0.04170653,167.96,167.94,5.9523]
[1747772569096,0.04170653,167.96,167.93,5.9526]
[1747772570802,0.04170653,167.96,167.92,0.04507276]
[1747772571191,5.99350653,167.96,167.93,5.9527]
[1747772571401,0.04170653,167.96,167.92,0.04507276]
[1747772571896,0.04170653,167.96,167.93,5.9524]
[1747772572499,5.99340653,167.96,167.93,5.9524]
[1747772572893,0.04170653,167.96,167.93,5.9524]
[1747772573397,0.04170653,167.96,167.94,5.9523]
[1747772573801,0.04170653,167.96,167.95,5.952]
[1747772576204,0.04170653,167.96,167.94,107.5323]
[1747772576404,0.04170653,167.96,167.92,0.04507276]
[1747772576908,0.04170653,167.96,167.93,5.9527]
[1747772577104,0.04170653,167.96,167.92,0.04507276]
[1747772577505,5.9524,167.94,167.92,0.04507276]
[1747772577700,0.04170653,167.96,167.92,0.04507276]
[1747772578502,5.9527,167.93,167.92,0.04507276]
[1747772581608,0.04170653,167.96,167.92,0.04507276]
[1747772581803,0.04170653,167.96,167.92,5.99787276]
[1747772582405,5.99370653,167.96,167.92,5.99787276]
[1747772582910,5.9521,167.95,167.92,5.99787276]
[1747772583806,0.04170653,167.96,167.92,0.04507276]
[1747772584508,5.9527,167.93,167.92,0.04507276]
[1747772586414,5.9525,167.94,167.92,0.04507276]
[1747772587409,5.9527,167.93,167.92,0.04507276]
[1747772588414,5.9525,167.94,167.92,0.04507276]
[1747772589817,5.9522,167.95,167.92,0.04507276]
[1747772590208,0.04170653,167.96,167.94,5.9522]
[1747772590922,5.99340653,167.96,167.93,5.9526]
[1747772591412,0.04170653,167.96,167.92,0.04507276]
[1747772591915,5.9524,167.94,167.92,0.04507276]
[1747772592432,0.04170653,167.96,167.92,0.04507276]
[1747772592817,5.9527,167.93,167.92,0.04507276]
[1747772608417,5.9527,167.93,167.92,7.276e-05]
[1747772609326,8.0554,167.93,167.92,7.276e-05]
[1747772611427,109.1954,167.93,167.92,7.276e-05]
[1747772620633,5.9527,167.93,167.92,7.276e-05]
[1747772621639,5.9518,167.95,167.92,7.276e-05]
[1747772622542,5.9521,167.94,167.92,7.276e-05]
[1747772623244,5.9524,167.93,167.92,7.276e-05]
[1747772631351,107.0924,167.93,167.92,7.276e-05]
[1747772633750,5.955,167.86,167.83,103.2225]
[1747772634750,5.955,167.86,167.83,103.26180817]
[1747772634751,5.99878129,167.86,167.83,103.26180817]
[1747772635149,5.9553,167.85,167.83,101.17930817]
[1747772635454,0.04378129,167.86,167.83,101.17930817]
[1747772635746,5.9556,167.84,167.83,101.17930817]
[1747772636346,5.9556,167.84,167.83,0.03930817]
[1747772637453,5.9554,167.85,167.83,0.03930817]
[1747772638746,0.04378129,167.86,167.83,0.03930817]
[1747772638949,11.00108966,167.96,167.83,100.87930817]
[1747772639150,111.84108966,167.96,167.84,13.96840245]
[1747772639954,0.04164011,167.92,167.88,0.04546447]
[1747772640453,111.84108966,167.96,167.88,0.04546447]
[1747772640454,11.00108966,167.96,167.88,0.04546447]
[1747772640954,11.00108966,167.96,167.89,1.48927713]
[1747772641344,11.00108966,167.96,167.89,11.38157958]
[1747772641547,0.03890331,167.94,167.93,5.9524]
[1747772642450,0.03890331,167.94,167.92,106.83415356]
[1747772644056,0.03890331,167.94,167.92,100.88155356]
[1747772644258,0.03890331,167.94,167.92,0.04155356]
[1747772644653,5.9524,167.93,167.92,0.04155356]
[1747772646463,5.99120331,167.94,167.92,0.04155356]
[1747772647067,5.9524,167.93,167.92,0.04155356]
[1747772648863,5.99110331,167.94,167.92,0.04155356]
[1747772649065,0.03890331,167.94,167.92,0.04155356]
[1747772649462,5.9524,167.93,167.92,0.04155356]
[1747772650755,5.99110331,167.94,167.92,0.04155356]
[1747772651463,0.03890331,167.94,167.92,0.04155356]
[1747772652267,0.03890331,167.94,167.92,5.99425356]
[1747772652770,0.03890331,167.94,167.92,0.04155356]
[1747772653761,5.99120331,167.94,167.92,0.04155356]
[1747772654061,0.03890331,167.94,167.92,0.04155356]
[1747772654472,5.9524,167.93,167.92,0.04155356]
[1747772660071,5.9524,167.93,167.92,5.356e-05]
[1747772667475,5.9543,167.88,167.84,100.8]
[1747772667778,3.9633,167.92,167.84,106.7554]
[1747772667977,5.9544,167.88,167.84,106.7554]
[1747772668486,5.99201161,167.88,167.84,106.7979304]
[1747772670385,5.99201161,167.88,167.85,5.9552]
[1747772670785,5.99201161,167.88,167.84,100.8425304]
[1747772671086,0.03761161,167.88,167.84,100.8425304]
[1747772671775,0.03761161,167.88,167.86,5.9549]
[1747772675280,5.99201161,167.88,167.85,5.955]
[1747772675481,5.99201161,167.88,167.84,100.8425304]
[1747772675799,5.99201161,167.88,167.85,5.955]
[1747772676489,5.9546,167.87,167.85,5.955]
[1747772677087,5.99191161,167.88,167.85,5.955]
[1747772677389,0.03761161,167.88,167.85,5.955]
[1747772677791,5.99191161,167.88,167.85,5.955]
[1747772677988,5.99191161,167.88,167.86,5.9548]
[1747772681692,0.03761161,167.88,167.84,100.8425304]
[1747772682190,0.03761161,167.88,167.84,0.0425304]
[1747772682792,5.9552,167.85,167.84,0.0425304]
[1747772685088,0.03761161,167.88,167.84,0.0425304]
[1747772685089,5.955,167.86,167.84,0.0425304]
[1747772685793,5.9552,167.85,167.84,0.0425304]
[1747772697499,5.9571,167.8,167.76,100.48]
[1747772697902,100.48,167.85,167.77,5.9579]
[1747772698095,5.9576,167.79,167.77,5.9579]
[1747772698293,5.9576,167.79,167.76,100.48]
[1747772698604,6.00239227,167.79,167.76,100.52225218]
[1747772698793,5.9578,167.78,167.76,100.52225218]
[1747772698997,0.04479227,167.79,167.76,100.52225218]
[1747772699908,5.9581,167.77,167.76,100.52225218]
[1747772700613,5.9581,167.77,167.76,0.04225218]
[1747772704216,5.9597,167.73,167.71,100.1]
[1747772706115,0.04163565,167.74,167.7,0.04582697]
[1747772707723,0.04163565,167.74,167.73,5.9595]
[1747772710319,0.04163565,167.74,167.7,0.04582697]
[1747772711221,5.9602,167.71,167.7,0.04582697]
[1747772714232,5.96,167.72,167.7,0.04582697]
[1747772714428,100.18163565,167.74,167.7,0.04582697]
[1747772714933,5.9595,167.73,167.7,6.00612697]
[1747772715125,5.9595,167.73,167.7,0.04582697]
[1747772715321,106.14083565,167.74,167.72,5.9599]
[1747772715527,6.00083565,167.74,167.72,5.9599]
[1747772715926,0.04163565,167.74,167.73,5.9595]
[1747772728236,0.04163565,167.74,167.72,5.9596]
[1747772728742,0.04163565,167.74,167.71,5.9601]
[1747772728944,0.04163565,167.74,167.7,0.04582697]
[1747772729331,5.9602,167.71,167.7,0.04582697]
[1747772729537,100.16,167.73,167.63,1.29895037]
[1747772729736,100.16,167.73,167.62,682.97459634]
[1747772729934,5.9613,167.68,167.65,5.9621]
[1747772730139,100.16,167.73,167.65,5.9621]
[1747772730445,0.03865132,167.71,167.67,0.04021683]
[1747772731046,5.9613,167.68,167.67,0.04021683]
[1747772731445,9.93095377,167.71,167.62,106.1231]
[1747772731645,9.89230245,167.71,167.62,106.1231]
[1747772732143,5.9623,167.66,167.62,106.1231]
[1747772732344,6.00134773,167.66,167.63,5.9629]
[1747772733034,5.9624,167.65,167.63,5.9629]
[1747772733245,0.03904773,167.66,167.62,106.16603412]
[1747772733744,0.03904773,167.66,167.62,100.20273412]